Cogmind - Beta 9.4 @@@ ROGUE MODE // 2020.03.20 @ 16:21:08 Player: erp.lsf Result: Destroyed by Y-45 Defender with Beam Rifle Performance ------------- Evolutions (1) 500 Regions Visited (3) 600 Robots Destroyed (26) 130 Value Destroyed (704) 704 Prototype IDs (1) 20 Alien Tech Used (0) 0 Bonus (17) 17 TOTAL SCORE: 1971 Bonus ------- High Alert Combat Kills 17 Cogmind --------- Core Integrity 0/400 Matter 246/300 Energy 246/250 System Corruption 0% Temperature Cool (11) Movement Walking (120) Location -9/Storage Parts ------- > --- POWER (1) -------- Ion Engine > --- PROPULSION (3) --- Aluminum Leg Aluminum Leg Wheel > --- UTILITY (3) ------ Sensor Array Signal Interpreter > --- WEAPON (2) ------- Improved Assault Rifle Improved Assault Rifle > --- INVENTORY (4) ---- Light Ion Engine Wheel Improved Assault Rifle Mining Laser Peak State ------------ > --- POWER ------------ Improved Ion Engine > --- PROPULSION ------- Wheel Wheel Wheel > --- UTILITY ---------- Medium Storage Unit Improved Sensor Array Signal Interpreter > --- WEAPON ----------- Autogun Shotgun > --- INVENTORY -------- Ion Engine Ion Engine Wheel Compact Wheel Sensor Array Medium Laser Assault Rifle Mining Laser [Rating: 13] Favorites ----------- Power Ion Engine Engine Ion Engine Propulsion Wheel Leg Aluminum Leg Wheel Wheel Utility Signal Interpreter Device Sensor Array Storage Medium Storage Unit Processor Signal Interpreter Protection Light Armor Plating Weapon Assault Rifle Energy Gun Medium Laser Ballistic Gun Assault Rifle Build | -11 -10 -9 -9 ------- Run | Scr Mat Mat Sto Slots Evolved 2 | . . 2 . Power . | . . . . Propulsion 1 | . . 1 . Utility 1 | . . 1 . Weapon . | . . . . Parts Attached 36 | 10 4 14 8 Power 4 | 1 1 1 1 Engine 4 | 1 1 1 1 Core . | . . . . Reactor . | . . . . Propulsion 13 | 6 2 3 2 Treads . | . . . . Leg 4 | 2 . . 2 Wheel 9 | 4 2 3 . Hover . | . . . . Flight . | . . . . Utility 8 | 1 1 4 2 Device 3 | . . 2 1 Storage 2 | 1 1 . . Processor 2 | . . 1 1 Hackware . | . . . . Protection 1 | . . 1 . Artifact . | . . . . Weapon 11 | 2 . 6 3 Energy Gun 2 | 1 . . 1 Energy Cannon . | . . . . Ballistic Gun 9 | 1 . 6 2 Ballistic Cannon . | . . . . Launcher . | . . . . Special Weapon . | . . . . Impact Weapon . | . . . . Slashing Weapon . | . . . . Piercing Weapon . | . . . . Special Melee Weapon . | . . . . Unidentified Prototypes 1 | . . . 1 Parts Lost 9 | . 1 2 6 Power 2 | . 1 . 1 Propulsion 2 | . . . 2 Utility 3 | . . 1 2 Weapon 2 | . . 1 1 Highest Loss Streak 3 | . 1 1 3 Average Slot Usage (%) 90 | . 84 94 90 Engine 11 | . 13 11 10 Wheel 28 | . 28 29 27 Device 5 | . . 6 7 Storage 9 | . 14 11 3 Processor 9 | . . 11 15 Protection 2 | . . 3 1 Energy Gun 4 | . 14 1 1 Ballistic Gun 18 | . 14 20 20 Naked Turns . | . . . . Heaviest Build 24 | 11 17 24 23 Greatest Support 30 | 26 26 30 30 Greatest Overweight (x) 1 | 1 . 1 1 Average Overweight (x) . | . . . . Largest Inventory Capacity 10 | 6 10 8 8 Average Capacity 6 | 4 6 8 5 Most Carried 8 | 2 6 8 5 Average Carried 4 | . 3 6 4 Final Capacity 8 | 6 8 8 4 Final Carried 6 | 1 6 5 4 Class Distribution -------------------- 60% | Scavenger-Mutant 39% | Mutant Dominant Class ---------------- Mutant | -10/Materials Scavenger-Mutant | -9/Materials Scavenger-Mutant | -9/Storage Resources | -11 -10 -9 -9 ----------- Run | Scr Mat Mat Sto Matter Collected 1030 | 210 169 418 233 Remotely . | . . . . Salvage Created 916 | . 144 538 234 Parts 65 | . 10 40 15 Haulers Intercepted . | . . . . Recyclers Shooed 2 | . . . 2 Parts Field Recycled . | . . . . Retrieved Matter . | . . . . Parts Self-Destructed . | . . . . Prevented . | . . . . Kills | -11 -10 -9 -9 ------- Run | Scr Mat Mat Sto Combat Hostiles Destroyed 19 | . 4 11 4 Guns 19 | . 4 11 4 Classes Destroyed 9 | . 5 3 1 Worker 1 | . 1 . . Builder 1 | . . 1 . Recycler 1 | . . 1 . Mechanic 1 | . 1 . . Operator 1 | . . . 1 Watcher 2 | . 1 . 1 Swarmer 6 | . 3 3 . Grunt 4 | . 1 1 2 Sentry 9 | . . 7 2 Best Kill Streak 5 | . 5 5 2 Combat Bots Only 4 | . 4 4 2 Max Kills in Single Turn 2 | . 1 2 1 Gunslinging . | . . . . Exploded . | . . . . Melee . | . . . . Uniques/NPCs Destroyed . | . . . . Combat | -11 -10 -9 -9 -------- Run | Scr Mat Mat Sto Damage Taken 1399 | . 169 737 493 Core 433 | . 22 211 200 Absorbed by Shields . | . . . . Core Remaining (%) 95 | 100 91 . . Volleys Fired 97 | . 18 43 36 Largest 2 | . 2 2 2 Hottest 70 | . 70 46 46 Shots Fired 190 | . 36 86 68 Gun 190 | . 36 86 68 Cannon . | . . . . Launcher . | . . . . Special . | . . . . Kinetic 172 | . 18 86 68 Thermal 18 | . 18 . . Explosive . | . . . . Electromagnetic . | . . . . Robot Hit Streak 11 | . 7 8 11 Robot Miss Streak 5 | . 3 4 5 Penetration Max . | . . . . Secondary Targets 3 | . . 3 . Max Gunslinging Chain 1 | . . 1 . Shots Hit Robots 131 | . 23 59 49 Core Hits 40 | . 9 21 10 Critical Hits 1 | . . 1 . Critical Kills 1 | . . 1 . Critical Parts Destroyed . | . . . . Melee Attacks . | . . . . Impact . | . . . . Slashing . | . . . . Piercing . | . . . . Sneak Attacks . | . . . . Combat Hostiles . | . . . . Follow-up Attacks . | . . . . Damage Inflicted 1413 | . 262 713 438 Guns 1413 | . 262 713 438 Cannons . | . . . . Explosions . | . . . . Melee . | . . . . Ramming . | . . . . Kinetic 1276 | . 125 713 438 Thermal 137 | . 137 . . Explosive . | . . . . Electromagnetic . | . . . . Impact . | . . . . Slashing . | . . . . Piercing . | . . . . Highest Corruption . | . . . . Average Corruption . | . . . . Corruption Purged . | . . . . Overload Shots . | . . . . Overflow Damage . | . . . . Projectiles . | . . . . Explosions . | . . . . Melee . | . . . . Knockbacks . | . . . . Impact . | . . . . Kinetic . | . . . . Secondary . | . . . . Self-Inflicted Damage . | . . . . Shots . | . . . . Rammed . | . . . . Targets Rammed . | . . . . Kicked . | . . . . Crushed . | . . . . Highest Temperature 107 | . 107 18 1 Average Temperature 24 | . 46 7 1 Received Heat Transfer 456 | . 24 213 219 Siege Activations . | . . . . Robots Corrupted . | . . . . Combat Hostiles . | . . . . Parts Fried . | . . . . Impact Corruptions . | . . . . Robots Melted . | . . . . Combat Hostiles . | . . . . Parts Melted 1 | . 1 . . Heat Transferred 407 | . 407 . . Parts Sabotaged . | . . . . Parts Stolen . | . . . . Parts Stripped . | . . . . Power Chain Reactions . | . . . . Missiles Intercepted . | . . . . Alert | -11 -10 -9 -9 ------- Run | Scr Mat Mat Sto Peak Influence 516 | . 112 516 249 Average Influence 183 | . 90 257 192 Maximum Alert Level 2 | . . 2 1 Low Security (%) 53 | 100 100 29 41 Level 1 40 | . . 57 58 Level 2 5 | . . 12 . Level 3 . | . . . . Level 4 . | . . . . Level 5 . | . . . . High Security . | . . . . Max Security . | . . . . Squads Dispatched 3 | . . 2 1 Investigation . | . . . . Extermination . | . . . . Reinforcement 3 | . . 2 1 Assault . | . . . . Garrison . | . . . . Intercept . | . . . . Construction Impeded . | . . . . Haulers Reinforced . | . . . . Stealth | -11 -10 -9 -9 --------- Run | Scr Mat Mat Sto Distress Signals 3 | . 2 . 1 Communications Jammed . | . . . . Distress Signals . | . . . . Times Spotted 37 | . 10 19 8 Peak Tracking Total 9 | . 4 5 9 Tactical Retreats 1 | . . 1 . Traps | -11 -10 -9 -9 ------- Run | Scr Mat Mat Sto Traps Triggered 2 | . . . 2 Indirectly . | . . . . Trap Hack Attempts . | . . . . Triggered . | . . . . Disarmed . | . . . . Reprogrammed . | . . . . Reused . | . . . . Traps Extracted . | . . . . Installed . | . . . . Triggered . | . . . . Machines | -11 -10 -9 -9 ---------- Run | Scr Mat Mat Sto Machines Disabled 3 | . . 3 . Max in Single Turn 1 | . . 1 . Garrison Access 1 | . . . 1 Machines Sabotaged . | . . . . Garrisons Compromised . | . . . . Overloaded Fab Kills . | . . . . Fab Network Shutdowns . | . . . . Hacking | -11 -10 -9 -9 --------- Run | Scr Mat Mat Sto Machines Accessed 7 | . . 3 4 Terminals 5 | . . 2 3 Fabricators . | . . . . Repair Stations . | . . . . Recycling Units 1 | . . 1 . Scanalyzers . | . . . . Garrison Access 1 | . . . 1 Total Hacks 10 | . . 5 5 Successful 7 | . . 3 4 Failed 3 | . . 2 1 Catastrophic . | . . . . Database Lockouts . | . . . . Manual . | . . . . Terminals 7 | . . 4 3 Fabricators . | . . . . Repair Stations . | . . . . Recycling Units 1 | . . 1 . Scanalyzers . | . . . . Garrison Access 2 | . . . 2 Terminal Hacks 5 | . . 2 3 Record 1 | . . . 1 Open Door 1 | . . . 1 Alert Level 1 | . . 1 . Locate Traps 1 | . . 1 . Zone Layout 1 | . . . 1 Fabricator Hacks . | . . . . Repair Station Hacks . | . . . . Recycling Unit Hacks 1 | . . 1 . Report Inventory 1 | . . 1 . Scanalyzer . | . . . . Garrison Access Hacks 1 | . . . 1 Seal Access 1 | . . . 1 Unauthorized Hacks . | . . . . Terminals . | . . . . Fabricators . | . . . . Repair Stations . | . . . . Recycling Units . | . . . . Scanalyzers . | . . . . Garrison Access . | . . . . Data Cores Recovered . | . . . . Used . | . . . . Hacking Detections 1 | . . . 1 Full Trace Events . | . . . . Feedback Events . | . . . . Feedback Blocked . | . . . . Robot Schematics Acquired . | . . . . Robots Built . | . . . . Matter . | . . . . Time . | . . . . Total Robot Build Rating . | . . . . Part Schematics Acquired . | . . . . Parts Built . | . . . . Matter . | . . . . Time . | . . . . Total Part Build Rating . | . . . . Parts Repaired . | . . . . Time . | . . . . Parts Recycled . | . . . . Recycled Matter . | . . . . Retrieved Matter . | . . . . Retrieved Components . | . . . . Parts Scanalyzed . | . . . . Part Schematics Acquired . | . . . . Parts Damaged . | . . . . Bothacking | -11 -10 -9 -9 ------------ Run | Scr Mat Mat Sto Used RIF Installer . | . . . . Robots Hacked . | . . . . Non-combat . | . . . . Combat . | . . . . Robot Hacks Applied . | . . . . Relay Couplers Released . | . . . . Robots Rewired . | . . . . Allies Hacked . | . . . . Hacks Repelled . | . . . . Allies | -11 -10 -9 -9 -------- Run | Scr Mat Mat Sto Total Allies . | . . . . Largest Group . | . . . . Highest-Rated Group . | . . . . Highest-Rated Ally . | . . . . Total Orders . | . . . . Ally Attacks . | . . . . Total Damage . | . . . . Kills . | . . . . Allies Corrupted . | . . . . Allies Melted . | . . . . Intel | -11 -10 -9 -9 ------- Run | Scr Mat Mat Sto Robot Analysis Total . | . . . . Derelict Logs Recovered . | . . . . Drone Launches . | . . . . Drone Recoveries . | . . . . Exploration | -11 -10 -9 -9 ------------- Run | Scr Mat Mat Sto Turns Passed 1032 | 75 226 435 296 Spaces Moved 783 | 61 187 349 186 Core 9 | 9 . . . Treads . | . . . . Legs 30 | 4 . . 26 Wheels 744 | 48 187 349 160 Hover . | . . . . Flight . | . . . . Fastest Speed 50 | 50 80 80 80 Average Speed 83 | 89 86 80 86 Slowest Speed 150 | 120 90 90 150 Overloaded Moves . | . . . . Propulsion Burnouts . | . . . . Robots Hopped . | . . . . Cave-ins Triggered . | . . . . Exploration Rate (%) 24 | 3 37 29 29 Regions Visited 3 Branch Regions 1 Pre-discovered Areas . | . . . . Known Exits Taken 1 | . . 1 . Unknown Exits Taken 2 | 1 1 . . Scrap Searched . | . . . . Spaces Dug . | . . . . Terrain Destroyed . | . . . . Melee . | . . . . Projectile . | . . . . AOE . | . . . . Actions | -11 -10 -9 -9 --------- Run | Scr Mat Mat Sto Total 973 | 80 214 425 254 Wait 21 | . . 12 9 Move 780 | 60 186 348 186 Hop . | . . . . Pick Up 12 | 4 4 1 3 Fast Attach 16 | 7 2 2 5 Attach 9 | 3 . 3 3 Detach 2 | 2 . . . Swap 11 | . 2 9 . Drop 17 | 4 2 7 4 Fire 97 | . 18 43 36 Melee . | . . . . Ram . | . . . . Kick . | . . . . Crush . | . . . . Escape Stasis 8 | . . . 8 Rewire . | . . . . Trap . | . . . . Miscellaneous . | . . . . Route ------- -11/Scrapyard -10/Materials (discovered 2 exits: *Mat / [*Min]) -9/Materials -9/Storage History --------- Turn | Location | Event 14 | -11/Scrapyard | Discovered new exit (range 15) 76 | -11/Scrapyard | Entered Materials 177 | -10/Materials | Discovered new exit (range 9) 273 | -10/Materials | Discovered new exit (range 11) 302 | -10/Materials | Entered another Materials area 302 | -9/Materials | Evolved 2 slots: Propulsion x1, Utility x1 400 | -9/Materials | Discovered new exit (range 14) 466 | -9/Materials | Identified exit to Storage 594 | -9/Materials | Build established: Scavenger-Mutant 722 | -9/Materials | Core integrity fell below 50% 737 | -9/Materials | Entered Storage 965 | -9/Storage | Core integrity fell below 20% 994 | -9/Storage | Lost 3 parts (2n1u) 1033 | -9/Storage | Destroyed by Y-45 Defender with Beam Rifle Last Messages --------------- minimizes built-in battery space to reduce weight for certain robot designs, especially those with strict weight restrictions such as hovering and flight-based models. Wheel destroyed. Targeting Computer destroyed. G-34 Mercenary destroyed. Acquired 47 matter. Acquired 41 matter. R-06 Scavenger collects Sml. Laser. O-16 Technician: "IFF HANDSHAKE FAILED. SECURING TERMINAL." Acquired Aluminum Leg. R-06 Scavenger collects Heat Sink. Acquired Aluminum Leg. ALERT: Hostiles spotted, dispatching reinforcements to Terminal S007. Connecting with Terminal... >>Layout(Zone) Retrieving Zone 3U layout... Downloaded map data. O-16 Technician destroyed. Acquired 16 matter. Map ----- +----------------------------------------------------+ | !% #???????????# #???????????????????? | | = #?????####### #???????????????????? | | ###/########### # #???????????????????? | | # """""" ##########??????????? | | + " " # #??????????? | | ^ # " " # """" #??????????? | | ##########+#### # """""" # " "" #??????????? | | ??????# ##### ## # " """ #??????????? | | ??????# T###" ## # """ " #??????????? | | ??????## ####T ########+## "" " #??????????? | | ??????#! ##" #??????# ## """" ####???????? | | ??????#! [ ]]### #?????## ## ## ???????? | | ??????# []]### #?????#T ## ## ???????? | | ??????#[[[ ]]### ######## ######+#+### ???????? | | ??????########## # ???????? | | ???????????##### x + ???????? | | ???????????????# # ???????? | | ?????????????####+#########+######+##### ???????? | | ?????????????# ## # ## ???????? | | ?????????????# ## """ # ## ???????? | | ?????????????# """ """ ## """ # ####???????? | | ?????????????# """ """ ## """ # #??????????? | | ???????????### """ """ ## ! # #??????????? | | ??????????? # ##/""" # #??????????? | | ??????????? # #T """ # #??????????? | | ??????????? # ##@""" # #??????????? | | ???????????############## # #??????????? | | ???????????########?????# # #??????????? | | ????????????????????????# Y #?????????????????? | | ????????????????????????#!! #?????????????????? | | ????????????????????????#!! #?????????????????? | | ????????????????????????##### ##?????????????????? | | ?????????????????????????????##??????????????????? | | ?????????????????????????????????????????????????? | | ?????????????????????????????????????????????????? | | ?????????????????????????????????????????????????? | | ?????????????????????????????????????????????????? | | ?????????????????????????????????????????????????? | | ?????????????????????????????????????????????????? | | ?????????????????????????????????????????????????? | | ?????????????????????????????????????????????????? | | ?????????????????????????????????????????????????? | | ?????????????????????????????????????????????????? | | ?????????????????????????????????????????????????? | | ?????????????????????????????????????????????????? | | ?????????????????????????????????????????????????? | | ?????????????????????????????????????????????????? | | ?????????????????????????????????????????????????? | | ?????????????????????????????????????????????????? | | ?????????????????????????????????????????????????? | +----------------------------------------------------+ Best States ------------- Heat Dissipation 28 Energy Generation 12 Energy Capacity 265 Matter Stores 300 Matter Capacity 300 Sight Range 16 Robot Scan Range 13 Terrain Scan Density 10 Armor Coverage 150 Evasion (%) 44 Targeting Accuracy 5 Item Schematics ----------------- None Robot Schematics ------------------ None Fabricated ------------ Nothing Alien Tech Used ----------------- None Achievements -------------- None Challenges ------------ None Game ------ Seed GatlingArmoredAnalyzer Manual? 0 Play Time 00:22:15 Cumulative 3.6 hours Start 2020.03.20 @ 14:52:17 End 2020.03.20 @ 16:21:08 Sessions 1 Manual Loads 0 Difficulty Rogue Special Mode None Game No. 6 Rogue 6 Adventurer 0 Explorer 0 Win Type - Total 0 Types 0/0/0/0/0/0/0 Lore% 2 Gallery% 6 Achievement% 8 Wizard Run 0 Options --------- ASCII 0 Keyboard 0 Movement Numpad Keybinds 0 Fullscreen 2 Font 24/Smallcaps Map View 76x50 Tactical HUD 0 Map Filters NONE Filters NONE Steam 1 RUN: 07eaba14-d918-4a20-8a03-af361d2fee4c